bitfinex-derivatives/quotes_SOLF0:USTF0_20250211
["timestamp","ask_amount","ask_price","bid_price","bid_amount"]
[1739291216786,0.0375804,198.9,198.89,13.59709444]
[1739291218389,5.0649804,198.9,198.89,13.59709444]
[1739291218693,0.0375804,198.9,198.89,13.59709444]
[1739291219093,5.0649804,198.9,198.89,13.59709444]
[1739291220592,5.0284,198.87,198.86,13.59709444]
[1739291220793,5.0284,198.87,198.82,11.99932591]
[1739291220794,0.0375804,198.9,198.83,13.59709444]
[1739291220993,1.5223,198.89,198.82,6.97002591]
[1739291221294,5.0291,198.83,198.82,6.97002591]
[1739291221693,0.03179345,198.84,198.82,6.97002591]
[1739291222299,5.0291,198.83,198.82,6.97002591]
[1739291222495,0.03179345,198.84,198.82,6.97002591]
[1739291223102,5.0293,198.83,198.8,13.59709444]
[1739291223300,0.03179345,198.84,198.8,13.59709444]
[1739291223599,5.0292,198.83,198.8,13.59709444]
[1739291223794,0.03179345,198.84,198.77,13.59709444]
[1739291224500,0.03179345,198.84,198.77,18.62769444]
[1739291224700,0.03179345,198.84,198.77,13.59709444]
[1739291225402,5.0298,198.81,198.77,13.59709444]
[1739291225600,0.03179345,198.84,198.8,13.59709444]
[1739291225797,3.0002,198.89,198.8,13.59709444]
[1739291225993,0.03710237,198.84,198.8,13.59709444]
[1739291226593,0.03710237,198.84,198.82,5.0294]
[1739291226899,0.03710237,198.84,198.83,13.59709444]
[1739291227296,0.03710237,198.84,198.8,13.59709444]
[1739291228103,5.0293,198.83,198.8,13.59709444]
[1739291228500,0.03710237,198.84,198.77,13.59709444]
[1739291228705,0.03710237,198.84,198.77,18.62769444]
[1739291228901,0.03710237,198.84,198.77,13.59709444]
[1739291229202,5.0301,198.8,198.77,13.59709444]
[1739291229900,0.03710237,198.84,198.77,13.59709444]
[1739291229901,5.0302,198.79,198.77,13.59709444]
[1739291230296,0.0356445,198.8,198.74,20.56712035]
[1739291230502,5.0303,198.79,198.74,20.56712035]
[1739291230699,0.0356445,198.8,198.74,20.56712035]
[1739291230900,0.0356445,198.8,198.74,6.97002591]
[1739291231094,5.0307,198.77,198.74,6.97002591]
[1739291231496,0.0356445,198.8,198.74,6.97002591]
[1739291231800,5.0304,198.78,198.74,20.56712035]
[1739291232204,5.0304,198.78,198.74,13.59709444]
[1739291232805,0.0356445,198.8,198.72,90.42]
[1739291233001,5.0308,198.77,198.73,0.88554195]
[1739291233201,5.0308,198.77,198.72,90.42]
[1739291233906,0.0356445,198.8,198.72,90.42]
[1739291235009,5.0314,198.74,198.71,13.59709444]
[1739291235201,1.5513,198.79,198.68,13.59709444]
[1739291235408,0.03762625,198.74,198.69,0.88571005]
[1739291235709,5.0319,198.73,198.69,5.91821005]
[1739291235904,0.03762625,198.74,198.68,13.59709444]
[1739291236100,0.03762625,198.74,198.69,0.88574721]
[1739291236306,0.03762625,198.74,198.66,6.97002591]
[1739291236808,5.0329,198.69,198.66,6.97002591]
[1739291237010,0.03762625,198.74,198.66,6.97002591]
[1739291237215,5.0324,198.71,198.66,6.97002591]
[1739291237511,0.03833961,198.72,198.66,6.97002591]
[1739291237903,0.03833961,198.72,198.65,13.59709444]
[1739291238608,0.03833961,198.72,198.62,20.56712035]
[1739291238910,13.59709444,198.71,198.62,6.97002591]
[1739291239103,2.9537,198.7,198.62,6.97002591]
[1739291239610,0.03295981,198.68,198.62,6.97002591]
[1739291240009,5.034,198.64,198.62,6.97002591]
[1739291240206,13.63005425,198.68,198.61,11.19047775]
[1739291240410,13.63005425,198.68,198.58,116.25416874]
[1739291240411,13.59709444,198.62,198.58,116.25416874]
[1739291240609,18.63229444,198.59,198.56,174.39217097]
[1739291240802,13.59709444,198.59,198.56,27.35665968]
[1739291241212,5.0357,198.57,198.56,10.05605968]
[1739291241514,15.09,198.57,198.54,193.48216484]
[1739291241710,26.96504286,198.55,198.54,184.59736484]
[1739291242013,26.96504286,198.55,198.54,173.11516484]
[1739291242213,26.96504286,198.55,198.54,6.94565074]
[1739291242514,5.0362,198.55,198.54,6.94565074]
[1739291243712,21.92884286,198.57,198.5,130.87971489]
[1739291244515,21.92884286,198.53,198.35,22.14234286]
[1739291244716,26.96564286,198.53,198.4,5.0399]
[1739291245013,21.92884286,198.53,198.35,22.14234286]
[1739291245217,0.03841643,198.46,198.39,21.92884286]
[1739291245719,388.6387039,198.43,198.41,5.0397]
[1739291245914,249.03671385,198.43,198.42,21.92884286]
[1739291246214,218.22154844,198.46,198.42,21.92884286]
[1739291246415,218.22154844,198.46,198.45,5.0388]
[1739291246614,150.9849377,198.46,198.45,5.0388]
[1739291246813,81.13292483,198.46,198.45,5.0388]
[1739291247115,33.75302483,198.46,198.45,5.0388]
[1739291247316,13.07332483,198.46,198.45,5.0388]
[1739291247620,13.07332483,198.46,198.45,26.96764286]
[1739291248111,2.483e-05,198.46,198.45,26.96764286]
[1739291248309,21.92884286,198.62,198.49,5.0377]
[1739291248509,21.92884286,198.62,198.45,21.92884286]
[1739291248719,1.488,198.61,198.45,21.92884286]
[1739291248916,5.0355,198.58,198.45,21.92884286]
[1739291249113,1.6068,198.57,198.42,21.92884286]
[1739291249319,21.92884286,198.56,198.39,21.92884286]
[1739291249519,0.03411761,198.51,198.48,0.03771232]
[1739291249715,0.03411761,198.51,198.4,5.0398]
[1739291250820,5.0376,198.5,198.38,5.0405]
[1739291251019,0.03411761,198.51,198.44,0.03647546]
[1739291251219,1.5071,198.52,198.44,0.03647546]
[1739291251520,0.03345588,198.49,198.44,0.03647546]
[1739291251915,0.03345588,198.49,198.44,5.07547546]
[1739291252116,0.03345588,198.49,198.44,0.03647546]
[1739291253921,5.0381,198.48,198.44,0.03647546]
[1739291254118,0.03345588,198.49,198.44,0.03647546]
[1739291254422,1.4939,198.47,198.34,21.92884286]
[1739291255214,5.0385,198.46,198.34,21.92884286]
[1739291255413,0.03278491,198.42,198.34,21.92884286]
[1739291255820,0.03278491,198.42,198.31,21.92884286]
[1739291256319,5.07228491,198.42,198.33,5.0418]
[1739291256620,5.07228491,198.42,198.31,21.92884286]
[1739291257123,5.0399,198.41,198.33,5.0418]
[1739291257425,0.03278491,198.42,198.31,21.92884286]
[1739291257719,5.0398,198.42,198.31,21.92884286]
[1739291257923,0.03233264,198.38,198.31,21.92884286]
[1739291258619,0.03233264,198.38,198.32,5.042]
[1739291258821,0.03233264,198.38,198.34,21.92884286]
[1739291259121,5.0395,198.42,198.34,21.92884286]
[1739291259323,0.03455372,198.38,198.34,21.92884286]
[1739291259525,5.0399,198.41,198.34,21.92884286]
[1739291259823,0.03684727,198.38,198.34,21.92884286]
[1739291260023,21.92884286,198.51,198.35,82.24989607]
[1739291260228,21.92884286,198.5,198.35,82.24989607]
[1739291260422,5.0397,198.42,198.36,5.041]
[1739291260621,21.92884286,198.5,198.35,82.24989607]
[1739291260920,21.92884286,198.5,198.35,87.29099607]
[1739291261123,21.92884286,198.5,198.35,82.24989607]
[1739291261324,0.03422527,198.44,198.43,21.92884286]
[1739291261527,21.92884286,198.6,198.43,21.92884286]
[1739291261722,1.6075,198.59,198.43,21.92884286]
[1739291261928,1.6075,198.59,198.46,5.0383]
[1739291262228,1.6075,198.59,198.43,21.92884286]
[1739291262830,5.0745948,198.53,198.49,0.03702471]
[1739291263329,0.0377948,198.53,198.49,0.03702471]
[1739291265130,0.0377948,198.53,198.5,5.0375]
[1739291265329,0.0377948,198.53,198.49,0.03702471]
[1739291266230,2.9948,198.63,198.5,21.92884286]
[1739291266428,1.5566,198.68,198.54,21.92884286]
[1739291266629,3.0705,198.68,198.54,21.92884286]
[1739291266824,5.0344,198.63,198.55,5.036]
[1739291267030,3.0705,198.68,198.54,21.92884286]
[1739291267532,0.03530577,198.63,198.59,0.03229077]
[1739291269435,45.39917835,198.69,198.61,21.92884286]
[1739291269737,3.2367,198.72,198.61,21.92884286]
[1739291270035,3.2367,198.72,198.57,21.92884286]
[1739291270635,3.2367,198.72,198.51,1.4594]
[1739291270636,0.03680093,198.66,198.63,1.702e-05]
[1739291271029,5.0339,198.64,198.63,1.702e-05]
[1739291272434,21.96564379,198.66,198.48,21.92884286]
[1739291272636,21.96564379,198.66,198.55,25.45531506]
[1739291272833,21.92884286,198.66,198.55,25.45531506]
[1739291273532,5.036,198.56,198.55,25.45531506]
[1739291275438,5.0362,198.55,198.54,0.03753092]
[1739291275639,0.03540904,198.57,198.54,0.03753092]
[1739291276234,5.0362,198.56,198.54,0.03753092]
[1739291276642,0.03540904,198.57,198.54,0.03753092]
[1739291278442,5.07130904,198.57,198.54,0.03753092]
[1739291279044,5.036,198.56,198.54,0.03753092]
[1739291279239,0.03540904,198.57,198.54,0.03753092]
[1739291279440,5.0362,198.55,198.54,0.03753092]
[1739291281443,5.0362,198.55,198.53,13.16455403]
[1739291281646,0.03540904,198.57,198.52,40.06922422]
[1739291281838,1.5769,198.56,198.52,32.28202422]
[1739291282139,1.5769,198.56,198.46,32.28202422]
[1739291282345,3.1634,198.56,198.46,32.28202422]
[1739291282545,5.0367,198.53,198.46,32.28202422]
[1739291282741,0.03758891,198.53,198.49,0.03501661]
[1739291283949,0.03758891,198.53,198.5,5.0373]
[1739291284344,0.03758891,198.53,198.5,5.0375]
[1739291284647,0.03758891,198.53,198.49,0.03501661]
[1739291285445,0.03758891,198.53,198.52,5.037]
[1739291285641,1.5865,198.61,198.49,0.03501661]
[1739291285845,1.5865,198.61,198.49,1.3905]
[1739291286048,5.0354,198.59,198.54,5.0363]
[1739291286245,5.0354,198.59,198.49,1.3905]
[1739291286441,1.5847,198.63,198.52,21.92884286]
[1739291286743,21.92884286,198.67,198.52,21.92884286]
[1739291286949,0.03772006,198.59,198.56,0.03340743]
[1739291287144,4.5176,198.7,198.6,5.0349]
[1739291287348,4.5176,198.7,198.56,21.92884286]
[1739291287551,4.5176,198.7,198.6,21.92884286]
[1739291287745,3.0132,198.7,198.63,5.0342]
[1739291288446,0.03862094,198.68,198.65,0.0319278]
[1739291288850,5.0334,198.66,198.65,0.0319278]
[1739291290250,0.03329648,198.68,198.65,0.0319278]
[1739291290849,5.0334,198.66,198.65,0.0319278]
[1739291291651,5.0349,198.61,198.51,21.92884286]
[1739291291852,1.4757,198.65,198.51,21.92884286]
[1739291292045,1.4757,198.65,198.55,5.0362]
[1739291292443,5.0352,198.59,198.51,21.92884286]
[1739291292653,5.0352,198.59,198.54,5.0362]
[1739291292854,0.03819757,198.57,198.53,0.03566723]
[1739291293851,5.0364,198.55,198.53,0.03566723]
[1739291294051,0.03819757,198.57,198.53,0.03566723]
[1739291294756,5.0365,198.54,198.53,0.03566723]
[1739291294952,0.03819757,198.57,198.53,0.03566723]
[1739291295355,5.0362,198.56,198.53,0.03566723]
[1739291295547,0.03819757,198.57,198.53,0.03566723]
[1739291296557,0.03819757,198.57,198.56,5.036]
[1739291296759,0.03819757,198.57,198.53,0.03566723]
[1739291296960,5.0362,198.56,198.53,0.03566723]
[1739291297356,0.03819757,198.57,198.53,0.03566723]
[1739291297552,5.0362,198.56,198.53,0.03566723]
[1739291297758,0.03819757,198.57,198.53,0.03566723]
[1739291298164,5.07399757,198.57,198.53,0.03566723]
[1739291298653,0.03819757,198.57,198.53,21.96451009]
[1739291299262,5.036,198.56,198.53,21.96451009]
[1739291299463,0.03819757,198.57,198.53,21.96451009]
[1739291299877,5.07389757,198.57,198.53,21.96451009]
[1739291300065,0.03819757,198.57,198.53,21.96451009]
[1739291300565,0.03819757,198.57,198.54,5.0364]
[1739291300763,0.03819757,198.57,198.53,0.03566723]
[1739291301161,5.0365,198.54,198.53,0.03566723]
[1739291301771,0.03819757,198.57,198.53,0.03566723]
[1739291302368,5.036,198.56,198.53,0.03566723]
[1739291302570,0.03819757,198.57,198.53,0.03566723]
[1739291302770,0.03819757,198.57,198.54,5.0364]
[1739291303071,0.03819757,198.57,198.53,0.03566723]
[1739291303274,0.03819757,198.57,198.53,21.96451009]
[1739291303465,1.4757,198.65,198.53,21.96451009]
[1739291303665,25.153,198.74,198.57,21.92884286]
[1739291303871,3.0509,198.73,198.6,21.92884286]
[1739291304375,5.0325,198.7,198.65,5.0335]
[1739291304575,3.0509,198.73,198.63,21.92884286]
[1739291304775,0.03360396,198.69,198.66,0.03848604]
[1739291305076,0.03360396,198.69,198.66,5.07168604]
[1739291305374,0.03360396,198.69,198.68,5.0329]
[1739291305674,0.03360396,198.69,198.66,0.03848604]
[1739291308470,0.03360396,198.69,198.66,21.9673289]
[1739291309079,0.03360396,198.69,198.68,5.0329]
[1739291309473,3.0246,198.78,198.66,21.9673289]
[1739291309672,5.0311,198.75,198.66,21.92884286]
[1739291310173,5.0309,198.76,198.71,5.0322]
[1739291310375,1.528,198.82,198.72,21.92884286]
[1739291310575,0.03428624,198.75,198.72,21.96148887]
[1739291310880,1.528,198.82,198.72,21.96148887]
[1739291311073,0.03223665,198.75,198.72,21.96148887]
[1739291311273,1.528,198.82,198.72,21.96148887]
[1739291311477,0.03680093,198.75,198.72,21.96148887]
[1739291311674,1.528,198.82,198.72,21.96148887]
[1739291311976,0.03544515,198.75,198.72,0.03264601]
[1739291312275,0.03359448,198.75,198.72,0.03264601]
[1739291312678,5.06489448,198.75,198.72,0.03264601]
[1739291312877,0.03359448,198.75,198.72,0.03264601]
[1739291313875,0.03359448,198.75,198.74,5.0314]
[1739291314679,1.528,198.82,198.76,5.0307]
[1739291314877,1.528,198.82,198.71,21.92884286]
[1739291315377,5.0303,198.79,198.75,5.0311]
[1739291315575,5.0303,198.79,198.71,21.92884286]
[1739291315576,1.528,198.82,198.71,21.92884286]
[1739291315770,0.03229857,198.79,198.75,0.03773257]
[1739291315973,0.03229857,198.79,198.76,5.0307]
[1739291316169,0.03229857,198.79,198.75,0.03773257]
[1739291316375,0.03229857,198.79,198.75,21.96657543]
[1739291316580,0.03229857,198.79,198.78,5.0304]
[1739291316972,1.5787,198.87,198.75,21.96657543]
[1739291317179,5.0283,198.87,198.82,5.0293]
[1739291317377,5.0283,198.87,198.79,21.92884286]
[1739291317378,1.579,198.88,198.79,21.92884286]
[1739291317680,5.0281,198.88,198.79,21.92884286]
[1739291317880,1.5304,198.92,198.79,21.92884286]
[1739291318379,1.5304,198.92,198.84,0.03502562]
[1739291318380,0.03607736,198.87,198.84,0.03502562]
[1739291320082,5.0284,198.86,198.84,0.03502562]
[1739291320282,0.03607736,198.87,198.84,0.03502562]
[1739291320479,5.06437736,198.87,198.84,0.03502562]
[1739291320684,0.03607736,198.87,198.84,0.03502562]
[1739291321185,0.03607736,198.87,198.85,5.0284]
[1739291321375,0.03607736,198.87,198.84,0.03502562]
[1739291321681,0.03607736,198.87,198.85,5.0286]
[1739291322279,0.03607736,198.87,198.84,0.03502562]
[1739291322581,0.03607736,198.87,198.86,5.0284]
[1739291322778,0.03607736,198.87,198.84,0.03502562]
[1739291322779,0.03607736,198.87,198.85,5.0286]
[1739291322983,0.03607736,198.87,198.84,0.03502562]
[1739291323385,5.06427736,198.87,198.84,0.03502562]
[1739291323988,0.03607736,198.87,198.84,5.06392562]
[1739291324186,0.03607736,198.87,198.84,0.03502562]
[1739291324587,0.03607736,198.87,198.84,5.06372562]
[1739291324789,5.06437736,198.87,198.84,0.03502562]
[1739291325087,0.03607736,198.87,198.84,0.03502562]
[1739291325484,5.06417736,198.87,198.84,0.03502562]
[1739291326587,5.06417736,198.87,198.84,5.06392562]
[1739291326889,0.03607736,198.87,198.84,0.03502562]
[1739291327379,5.06417736,198.87,198.84,0.03502562]
[1739291327583,0.03607736,198.87,198.84,0.03502562]
[1739291327981,0.03607736,198.87,198.86,5.0284]
[1739291328384,1.485,198.94,198.84,21.96386848]
[1739291329486,0.03657316,198.91,198.84,21.96386848]
[1739291331590,5.0278,198.89,198.84,21.96386848]
[1739291331889,0.03657316,198.91,198.84,21.96386848]
[1739291332086,0.03657316,198.91,198.86,5.0283]
[1739291332290,0.03657316,198.91,198.84,21.96386848]
[1739291332686,5.0276,198.89,198.85,5.0284]
[1739291332889,0.03657316,198.91,198.84,21.96386848]
[1739291333292,5.0276,198.89,198.86,5.0282]
[1739291333594,0.03657316,198.91,198.84,21.96386848]
[1739291333793,5.0274,198.9,198.86,5.0283]
[1739291333994,5.0274,198.9,198.84,21.96386848]
[1739291334196,5.06377316,198.91,198.86,5.0281]
[1739291334394,0.03657316,198.91,198.87,21.92884286]
[1739291334791,0.03657316,198.91,198.88,5.0277]
[1739291336489,0.03657316,198.91,198.87,21.92884286]
[1739291336693,0.03657316,198.91,198.84,21.96386848]
[1739291337298,5.0278,198.89,198.85,5.0284]
[1739291337498,0.03657316,198.91,198.84,21.96386848]
[1739291337796,5.0278,198.89,198.85,5.0284]
[1739291337998,5.0278,198.89,198.84,21.96386848]
[1739291338496,0.03657316,198.91,198.78,21.92884286]
[1739291338695,3.0375,198.92,198.78,21.92884286]
[1739291338893,5.0283,198.87,198.82,5.0294]
[1739291339093,3.0375,198.92,198.78,21.92884286]
[1739291339393,5.0279,198.88,198.78,21.92884286]
[1739291339598,0.03817186,198.87,198.83,0.03831322]
[1739291340497,5.0289,198.84,198.83,0.03831322]
[1739291341003,1.5247,198.86,198.83,0.03831322]
[1739291341399,0.03817186,198.87,198.83,0.03831322]
[1739291341700,0.03817186,198.87,198.86,5.0284]
[1739291341995,3.0375,198.92,198.83,21.96715608]
[1739291341996,1.5561,198.92,198.83,21.96715608]
[1739291342197,1.5561,198.92,198.87,21.92884286]
[1739291342398,1.5247,198.96,198.87,21.92884286]
[1739291343001,1.5614,199.0,198.87,21.92884286]
[1739291343197,0.03403603,198.93,198.92,5.0266]
[1739291343399,3.0903,199.0,198.87,21.92884286]
[1739291343699,0.03370787,198.94,198.91,0.03633966]
[1739291343897,0.03370787,198.94,198.92,5.0268]
[1739291344097,0.03370787,198.94,198.91,21.96518252]
[1739291345300,0.03370787,198.94,198.91,0.03633966]
[1739291345807,0.03370787,198.94,198.91,5.06333966]
[1739291346302,5.06010787,198.94,198.91,0.03633966]
[1739291346601,0.03370787,198.94,198.91,0.03633966]
[1739291346905,5.0266,198.93,198.91,0.03633966]
[1739291347601,0.03370787,198.94,198.91,0.03633966]
[1739291348298,5.0268,198.93,198.91,0.03633966]
[1739291348496,0.03370787,198.94,198.91,0.03633966]
[1739291349093,5.0268,198.92,198.91,0.03633966]
[1739291350494,0.03370787,198.94,198.91,5.06343966]
[1739291350695,0.03370787,198.94,198.91,0.03633966]
[1739291351700,5.06010787,198.94,198.91,5.06343966]
[1739291351901,0.03370787,198.94,198.91,0.03633966]
[1739291352102,0.03370787,198.94,198.92,5.0268]
[1739291352303,0.03370787,198.94,198.91,0.03633966]
[1739291352700,0.03370787,198.94,198.91,5.06333966]
[1739291352907,0.03370787,198.94,198.91,0.03633966]
[1739291354407,0.03370787,198.94,198.91,21.96518252]
[1739291354608,0.03370787,198.94,198.93,5.0266]
[1739291354809,3.0903,199.0,198.91,21.96518252]
[1739291355005,1.588,199.01,198.96,5.0257]
[1739291355406,1.588,199.01,198.91,21.92884286]
[1739291356008,0.0386028,198.98,198.94,0.03490061]
[1739291357710,5.0256,198.97,198.94,0.03490061]
[1739291357911,0.0386028,198.98,198.94,0.03490061]
[1739291358512,5.0261,198.95,198.94,0.03490061]
[1739291360214,0.0386028,198.98,198.94,0.03490061]
[1739291361918,5.0261,198.95,198.94,0.03490061]
[1739291365520,0.0386028,198.98,198.84,21.92884286]
[1739291365712,3.0675,199.0,198.84,21.92884286]
[1739291366313,3.0675,199.0,198.87,5.0281]
[1739291366510,3.0675,199.0,198.84,21.92884286]
[1739291366711,3.0675,199.0,198.92,0.03482757]
[1739291366712,0.03606458,198.95,198.92,0.03482757]
[1739291367121,5.0266,198.93,198.92,0.03482757]
[1739291368523,0.03606458,198.95,198.86,5.0281]
[1739291368727,5.0276,198.9,198.86,5.0281]
[1739291369219,21.92884286,198.99,198.84,26.95764286]
[1739291369425,10.0508,198.98,198.84,26.95764286]
[1739291369725,0.03691379,198.93,198.89,0.034442]
[1739291370928,5.0274,198.9,198.89,0.034442]
[1739291373428,5.0287,198.85,198.8,13.64525984]
[1739291373628,2.9965,198.92,198.77,13.64525984]
[1739291373931,1.5726,198.91,198.77,13.64525984]
[1739291374230,1.5726,198.91,198.8,13.64525984]
[1739291374630,0.03831832,198.87,198.84,0.03693088]
[1739291375131,5.0286,198.86,198.84,0.03693088]
[1739291375532,0.03831832,198.87,198.84,0.03693088]
[1739291376134,5.0284,198.86,198.84,0.03693088]
[1739291376334,0.03831832,198.87,198.84,0.03693088]
[1739291376837,5.0286,198.85,198.84,0.03693088]
[1739291377026,0.03831832,198.87,198.84,0.03693088]
[1739291379031,5.0284,198.86,198.84,0.03693088]
[1739291380326,5.06651832,198.87,198.84,0.03693088]
[1739291380531,0.03831832,198.87,198.84,0.03693088]
[1739291380831,0.03831832,198.87,198.85,5.0284]
[1739291381626,5.0285,198.86,198.84,0.03693088]
[1739291381830,0.03831832,198.87,198.84,0.03693088]
[1739291382735,5.0286,198.85,198.84,0.03693088]
[1739291384731,0.03831832,198.87,198.84,0.03693088]
[1739291385038,0.03831832,198.87,198.85,13.64525984]
[1739291385538,0.03831832,198.87,198.86,5.0284]
[1739291386238,3.1531,198.96,198.89,5.0274]
[1739291386439,3.1531,198.96,198.88,13.64525984]
[1739291386641,10.0482,199.04,198.91,13.64525984]
[1739291386833,1.5622,199.01,198.92,5.0268]
[1739291387435,0.03333299,198.98,198.95,0.03554249]
[1739291388140,5.0256,198.97,198.95,0.03554249]
[1739291388741,5.0258,198.96,198.95,0.03554249]
[1739291390544,0.03333299,198.98,198.88,13.64525984]
[1739291390742,13.64525984,198.99,198.88,13.64525984]
[1739291391139,13.64525984,198.96,198.85,13.64525984]
[1739291391336,1.4566,198.95,198.82,13.64525984]
[1739291391540,5.0281,198.88,198.83,5.0289]
[1739291391743,5.0281,198.88,198.87,0.03803792]
[1739291391941,5.0281,198.88,198.82,13.64525984]
[1739291392144,5.0281,198.88,198.83,0.03354534]
[1739291392344,5.0281,198.88,198.84,5.0286]
[1739291392545,5.0284,198.87,198.83,0.03354534]
[1739291392739,0.03669381,198.89,198.83,0.03354534]
[1739291393343,0.03669381,198.89,198.86,5.0282]
[1739291393545,0.03669381,198.89,198.85,13.64525984]
[1739291393743,0.03669381,198.89,198.83,0.03354534]
[1739291393744,0.03669381,198.89,198.88,13.64525984]
[1739291393939,13.64525984,199.03,198.91,13.64525984]
[1739291394743,5.026,198.96,198.91,13.64525984]
[1739291395047,0.0370117,198.95,198.92,0.0328207]
[1739291395244,0.0370117,198.95,198.92,5.0594207]
[1739291396047,0.0370117,198.95,198.92,0.0328207]
[1739291397746,0.0370117,198.95,198.92,21.8499662]
[1739291398745,0.0370117,198.95,198.92,0.0328207]
[1739291399346,5.0266,198.93,198.92,0.0328207]
[1739291400750,5.0279,198.88,198.8,21.8171455]
[1739291401244,5.0284,198.86,198.8,21.8171455]
[1739291401543,1.5553,198.93,198.77,55.39364131]
[1739291401945,5.0283,198.87,198.84,0.03638513]
[1739291402349,0.03457272,198.88,198.84,0.03638513]
[1739291403152,5.0286,198.85,198.84,0.03638513]
[1739291405053,0.03457272,198.88,198.84,0.03638513]
[1739291405552,0.03457272,198.88,198.85,21.8171455]
[1739291405951,0.03457272,198.88,198.87,5.0281]
[1739291406149,1.5898,198.97,198.85,21.8171455]
[1739291406354,5.0269,198.92,198.88,5.0277]
[1739291406652,1.5898,198.97,198.85,21.8171455]
[1739291406955,1.5898,198.97,198.85,5.0286]
[1739291407355,5.0274,198.9,198.89,0.03314666]
[1739291408454,5.0274,198.9,198.89,4.666e-05]
[1739291410559,25.0341455,198.92,198.75,28.74135066]
[1739291410755,5.0299,198.8,198.75,33.77225066]
[1739291411354,5.0299,198.8,198.75,26.8480455]
[1739291411546,1.5191,198.89,198.75,21.8171455]
[1739291411746,0.03207024,198.79,198.76,0.03623098]
[1739291411946,1.5191,198.89,198.75,21.8171455]
[1739291412148,6.547,198.89,198.82,5.0291]
[1739291412346,0.03414803,198.84,198.79,21.8171455]
[1739291412747,6.6378,198.92,198.86,5.0284]
[1739291412952,1.6108,198.92,198.82,21.8171455]
[1739291413153,5.0261,198.96,198.89,5.0276]
[1739291413353,1.5784,198.98,198.86,21.8171455]
[1739291413855,5.05996745,198.94,198.9,0.03387935]
[1739291414056,0.03336745,198.94,198.9,0.03387935]
[1739291414455,5.0266,198.93,198.9,0.03387935]
[1739291414848,0.03336745,198.94,198.9,0.03387935]
[1739291415048,5.0266,198.93,198.9,0.03387935]
[1739291415249,0.03336745,198.94,198.9,0.03387935]
[1739291415651,0.03336745,198.94,198.84,5.0289]
[1739291415949,1.5784,198.98,198.8,21.8171455]
[1739291416657,5.0256,198.97,198.8,21.8171455]
[1739291416862,0.03709524,198.91,198.87,21.84901959]
[1739291417658,0.03709524,198.91,198.9,5.0274]
[1739291418057,0.03709524,198.91,198.87,21.84901959]
[1739291418359,0.03709524,198.91,198.87,0.03187409]
[1739291418762,5.06439524,198.91,198.87,0.03187409]
[1739291418948,0.03709524,198.91,198.87,0.03187409]
[1739291419152,5.0274,198.9,198.87,0.03187409]
[1739291419353,0.03709524,198.91,198.87,0.03187409]
[1739291419760,5.0274,198.9,198.87,0.03187409]
[1739291419962,0.03709524,198.91,198.87,0.03187409]
[1739291421554,0.03709524,198.91,198.77,21.8171455]
[1739291421753,21.8171455,198.93,198.77,21.8171455]
[1739291422752,0.03500852,198.87,198.83,0.03779811]
[1739291423260,5.0289,198.84,198.83,0.03779811]
[1739291424362,5.0284,198.86,198.83,0.03779811]
[1739291424759,0.03500852,198.87,198.83,0.03779811]
[1739291428565,0.03500852,198.87,198.86,5.0284]
[1739291429466,1.6088,198.95,198.85,21.8171455]
[1739291429667,1.6088,198.95,198.82,1.4965]
[1739291429866,1.6088,198.95,198.83,5.0291]
[1739291430069,1.6088,198.95,198.81,21.8171455]
[1739291430366,5.0286,198.86,198.81,21.8171455]
[1739291430665,1.6088,198.95,198.82,5.06314206]
[1739291430861,0.03669622,198.85,198.82,5.0293]
[1739291431069,5.0286,198.86,198.82,5.0293]
[1739291431367,0.03420693,198.85,198.82,0.0347905]
[1739291431557,5.0291,198.83,198.77,21.8171455]
[1739291431763,5.06728291,198.83,198.82,0.03495434]
[1739291431959,5.06728291,198.83,198.77,21.8171455]
[1739291432263,5.06728291,198.83,198.81,0.03299768]
[1739291432858,0.03818291,198.83,198.81,0.03299768]
[1739291433467,5.0294,198.82,198.81,0.03299768]
[1739291433670,0.03818291,198.83,198.81,0.03299768]
[1739291435670,0.03818291,198.83,198.82,5.0294]
[1739291436471,0.03818291,198.83,198.81,0.03299768]
[1739291436973,0.03818291,198.83,198.81,5.06239768]
[1739291437162,0.03818291,198.83,198.81,0.03299768]
[1739291437569,0.03818291,198.83,198.82,5.0294]
[1739291438370,0.03818291,198.83,198.81,0.03299768]
[1739291439262,0.03818291,198.83,198.81,5.06249768]
[1739291439464,1.6088,198.95,198.81,0.03299768]
[1739291439465,5.0279,198.88,198.81,0.03299768]
[1739291439666,1.6088,198.95,198.79,5.0301]
[1739291439962,21.8171455,198.93,198.77,21.8171455]
[1739291440166,21.8171455,198.93,198.74,1.4965]
[1739291440369,21.8171455,198.89,198.73,21.8171455]